Cogmind - Beta 14 @@@ ROGUE MODE // 2025.03.24 @ 18:01:07 Player: Drosophila Result: Destroyed by D-53 Grenadier with Mini Grenade Launcher Performance ------------- Evolutions (0) 0 Regions Visited (2) 400 Robots Destroyed (26) 130 Value Destroyed (485) 485 Prototype IDs (0) 0 Alien Tech Used (0) 0 Bonus (-40) -40 TOTAL SCORE: 975 Bonus ------- Friendly Fire -40 Cogmind --------- Core Integrity 0/250 Matter 185/300 Energy 0/100 System Corruption 0% Temperature Cool (0) Movement Core (750) Ox14 Location -10/Mines Parts ------- > --- POWER (1) -------- (None) > --- PROPULSION (2) --- (None) > --- UTILITY (2) ------ Heat Sink High-capacity Storage Unit > --- WEAPON (2) ------- Beam Rifle > --- INVENTORY (20) --- Ion Engine Armored Wheel Armored Wheel Heat Sink Medium Storage Unit Sensor Array Signal Interpreter Improved Terrain Scanner Seismic Detector Propulsion Shielding Utility Shielding Weapon Shielding Beam Rifle Beam Rifle Datajack Flail Peak State ------------ > --- POWER ------------ Ion Engine > --- PROPULSION ------- Armored Wheel Armored Wheel > --- UTILITY ---------- High-capacity Storage Unit Seismic Detector > --- WEAPON ----------- Grenade Launcher Flail > --- INVENTORY -------- Ion Engine Armored Wheel Armored Wheel Heat Sink Medium Storage Unit Sensor Array Improved Terrain Scanner EM Pulse Gun Beam Rifle Beam Rifle Beam Rifle Beam Rifle [Rating: 12] Favorites ----------- Power Ion Engine Engine Ion Engine Propulsion Armored Wheel Wheel Armored Wheel Utility Seismic Detector Device Seismic Detector Storage High-capacity Storage Unit Weapon EM Pulse Gun Energy Gun EM Pulse Gun Ballistic Gun Assault Rifle Launcher Grenade Launcher Impact Weapon Flail Build | -11 -10 -10 ------- Run | Yrd Mat Min Slots Evolved . | . . . Power . | . . . Propulsion . | . . . Utility . | . . . Weapon . | . . . Parts Attached 29 | 7 18 4 Power 1 | 1 . . Engine 1 | 1 . . Core . | . . . Reactor . | . . . Propulsion 7 | 2 5 . Treads . | . . . Leg . | . . . Wheel 7 | 2 5 . Hover . | . . . Flight . | . . . Utility 8 | 2 5 1 Device 5 | 1 3 1 Storage 3 | 1 2 . Processor . | . . . Hackware . | . . . Protection . | . . . Artifact . | . . . Weapon 13 | 2 8 3 Energy Gun 7 | 1 4 2 Energy Cannon . | . . . Ballistic Gun 1 | 1 . . Ballistic Cannon . | . . . Launcher 4 | . 3 1 Special Weapon . | . . . Impact Weapon 1 | . 1 . Slashing Weapon . | . . . Piercing Weapon . | . . . Special Melee Weapon . | . . . Unidentified Prototypes . | . . . Parts Lost 6 | . 1 5 Power 1 | . . 1 Propulsion 2 | . . 2 Utility . | . . . Weapon 3 | . 1 2 Highest Loss Streak 3 | . 1 3 To Critical Strikes . | . . . Average Slot Usage (%) 88 | . 89 76 Engine 13 | . 14 9 Wheel 23 | . 23 28 Device 13 | . 12 14 Storage 14 | . 14 14 Energy Gun 13 | . 14 7 Ballistic Gun 2 | . 2 . Launcher 2 | . 1 3 Impact Weapon 4 | . 5 . Peak Build Rating 12 | 7 12 12 Average Rating 9 | 5 10 9 On Entrance 6 | . 7 11 Naked Turns . | . . . Heaviest Build 51 | 15 51 49 Greatest Support 26 | 26 26 24 Greatest Overweight (x) 4 | . 4 2 Average Overweight (x) 1 | . 1 1 Largest Inventory Capacity 20 | 8 20 20 Average Capacity 15 | 7 15 20 Most Carried 18 | 3 18 18 Average Carried 13 | 1 13 17 Final Capacity 20 | 8 20 20 Final Carried 18 | 3 18 16 Class Distribution -------------------- 100% | Mutant Dominant Class ---------------- Mutant | -10/Materials Mutant | -10/Mines Resources | -11 -10 -10 ----------- Run | Yrd Mat Min Matter Collected 537 | 283 254 . Remotely . | . . . Salvage Created 723 | 149 561 13 Parts 49 | 13 36 . Haulers Intercepted 2 | . 2 . Recyclers Shooed . | . . . Parts Field Recycled . | . . . Retrieved Matter . | . . . Parts Self-Destructed . | . . . Prevented . | . . . Kills | -11 -10 -10 ------- Run | Yrd Mat Min Combat Hostiles Destroyed 22 | . 15 7 Guns 8 | . 7 1 AOE 14 | . 8 6 Classes Destroyed 8 | 2 4 2 Tunneler 3 | 3 . . Hauler 2 | . 2 . Recycler 2 | 1 1 . Watcher 3 | . 3 . Swarmer 9 | . 9 . Grunt 6 | . 6 . Demolisher 1 | . . 1 Assembled 6 | . . 6 Best Kill Streak 6 | 4 5 6 Combat Bots Only 6 | . 3 6 Max Kills in Single Turn 3 | 1 3 2 Gunslinging . | . . . Exploded 2 | . 2 2 Melee . | . . . Uniques/NPCs Destroyed . | . . . Combat | -11 -10 -10 -------- Run | Yrd Mat Min Hostile Shots Fired 61 | . 40 21 Missed 20 | . 16 4 Damage Taken 899 | . 324 575 Core 257 | . 51 206 Absorbed by Shields . | . . . Regen/Repaired (Parts) 136 | . 136 . Core Remaining (%) 100 | 100 . . Volleys Fired 56 | 5 39 12 Largest 2 | 2 2 2 Hottest 112 | 60 96 112 Shots Fired 79 | 10 55 14 Gun 64 | 10 48 6 Cannon . | . . . Launcher 15 | . 7 8 Special . | . . . Kinetic 14 | 5 9 . Thermal 13 | . 7 6 Explosive 15 | . 7 8 Electromagnetic 37 | 5 32 . Robot Hit Streak 8 | 4 8 7 Robot Miss Streak 4 | 1 4 1 Penetration Max . | . . . Secondary Targets . | . . . Shots Hit Robots 50 | 8 34 8 Core Hits 40 | 4 22 14 Critical Kills . | . . . Critical Parts Destroyed 1 | . 1 . Critical Strikes 2 | . 2 . Burn 1 | . 1 . Smash 1 | . 1 . Melee Attacks 5 | . 5 . Impact 5 | . 5 . Slashing . | . . . Piercing . | . . . Sneak Attacks 2 | . 2 . Combat Hostiles . | . . . Follow-up Attacks . | . . . Damage Inflicted 1679 | 103 1082 494 Guns 655 | 103 466 86 Cannons . | . . . Explosions 942 | . 534 408 Melee 82 | . 82 . Ramming . | . . . Kinetic 90 | 53 37 . Thermal 187 | . 101 86 Explosive 914 | . 506 408 Electromagnetic 406 | 50 356 . Impact 82 | . 82 . Slashing . | . . . Piercing . | . . . Highest Corruption . | . . . Average Corruption . | . . . Corruption Purged . | . . . Corruption Blocked . | . . . Overload Shots . | . . . Overflow Damage 64 | . 64 . Projectiles . | . . . Explosions 28 | . 28 . Melee 36 | . 36 . Knockbacks . | . . . Impact . | . . . Kinetic . | . . . Secondary . | . . . Self-Inflicted Damage 27 | . 5 22 Shots 2 | . 1 1 Rammed . | . . . Targets Rammed . | . . . Kicked . | . . . Crushed . | . . . Highest Temperature 315 | . 315 12 Average Temperature 134 | . 149 6 Received Heat Transfer 84 | . 84 . Effects 3 | . 3 . Energy Bleed 1 | . 1 . Interference 1 | . 1 . Damage (minor) 1 | . 1 . Siege Activations . | . . . Robots Corrupted . | . . . Combat Hostiles . | . . . Parts Fried 5 | . 5 . Impact Corruptions 1 | . 1 . Robots Melted . | . . . Combat Hostiles . | . . . Parts Melted . | . . . Heat Transferred 531 | . 309 222 Parts Sabotaged . | . . . Parts Stolen . | . . . Parts Stripped . | . . . Power Chain Reactions 1 | . 1 . Alert | -11 -10 -10 ------- Run | Yrd Mat Min Peak Influence 404 | 20 404 94 Initial 62 | . 13 62 Average 195 | 7 216 70 Maximum Alert Level 2 | . 2 . Low Security (%) 47 | 100 40 100 Level 1 52 | . 59 . Level 2 . | . . . Level 3 . | . . . Level 4 . | . . . Level 5 . | . . . High Security . | . . . Max Security . | . . . Squads Dispatched 4 | . 4 . Investigation 4 | . 4 . Extermination . | . . . Reinforcement . | . . . Assault . | . . . Garrison . | . . . Intercept . | . . . Searches Triggered . | . . . Construction Impeded . | . . . Haulers Reinforced . | . . . Active Scanning Responses . | . . . Cargo Convoy Interrupts . | . . . Stealth | -11 -10 -10 --------- Run | Yrd Mat Min Distress Signals 1 | . 1 . Communications Jammed . | . . . Distress Signals . | . . . Times Spotted 35 | . 18 17 Peak Tracking Total 6 | . 4 6 Tactical Retreats 1 | . . 1 Traps | -11 -10 -10 ------- Run | Yrd Mat Min Traps Triggered 4 | . 4 . Indirectly . | . . . Trap Hack Attempts . | . . . Triggered . | . . . Disarmed . | . . . Reprogrammed . | . . . Reused . | . . . Traps Extracted . | . . . Installed . | . . . Triggered . | . . . Machines | -11 -10 -10 ---------- Run | Yrd Mat Min Machines Disabled 4 | . 4 . Max in Single Turn 1 | . 1 . Machines Repaired . | . . . Machines Dismantled . | . . . Machines Sabotaged . | . . . Overloaded Fab Kills . | . . . Hacking | -11 -10 -10 --------- Run | Yrd Mat Min Machines Accessed 11 | . 11 . Terminals 8 | . 8 . Fabricators . | . . . Repair Stations 1 | . 1 . Recycling Units 2 | . 2 . Scanalyzers . | . . . Garrison Access . | . . . Total Hacks 37 | . 37 . Successful 17 | . 17 . Failed 19 | . 19 . Catastrophic 1 | . 1 . Database Lockouts 1 | . 1 . Manual 23 | . 23 . Terminals 27 | . 27 . Fabricators . | . . . Repair Stations 4 | . 4 . Recycling Units 6 | . 6 . Scanalyzers . | . . . Garrison Access . | . . . Terminal Hacks 7 | . 7 . Robot Analysis 3 | . 3 . Alert Level 1 | . 1 . Recall Investigation 1 | . 1 . Zone Layout 2 | . 2 . Fabricator Hacks . | . . . Repair Station Hacks 4 | . 4 . Scan Component 2 | . 2 . Repair 2 | . 2 . Recycling Unit Hacks 2 | . 2 . Retrieve Components 2 | . 2 . Scanalyzer . | . . . Garrison Access Hacks . | . . . Unauthorized Hacks 4 | . 4 . Terminals 2 | . 2 . Botnet 2 | . 2 . Fabricators . | . . . Repair Stations . | . . . Recycling Units 2 | . 2 . Tunnel 2 | . 2 . Scanalyzers . | . . . Garrison Access . | . . . Data Cores Recovered . | . . . Used . | . . . Hacking Detections 9 | . 9 . Full Trace Events 2 | . 2 . Feedback Events . | . . . Feedback Blocked . | . . . Robot Schematics Acquired . | . . . Robots Built . | . . . Authchips . | . . . Time . | . . . Total Robot Build Rating . | . . . Part Schematics Acquired . | . . . Parts Built . | . . . Authchips . | . . . Time . | . . . Total Part Build Rating . | . . . Parts Repaired 2 | . 2 . Time 64 | . 64 . Parts Recycled . | . . . Recycled Matter . | . . . Retrieved Matter . | . . . Retrieved Components 18 | . 18 . Parts Scanalyzed . | . . . Part Schematics Acquired . | . . . Parts Damaged . | . . . Bothacking | -11 -10 -10 ------------ Run | Yrd Mat Min Used RIF Installer . | . . . Robots Hacked . | . . . Non-combat . | . . . Combat . | . . . Robot Hacks Applied . | . . . Relay Couplers Released . | . . . Fabnet Peak Effective % . | . . . Robots Rewired . | . . . Allies Hacked . | . . . Hacks Repelled . | . . . Allies | -11 -10 -10 -------- Run | Yrd Mat Min Total Allies . | . . . Largest Group . | . . . Highest-Rated Group . | . . . Highest-Rated Ally . | . . . Total Orders . | . . . Ally Attacks . | . . . Total Damage . | . . . Kills . | . . . Allies Corrupted . | . . . Allies Melted . | . . . Intel | -11 -10 -10 ------- Run | Yrd Mat Min Robot Analysis Total 3 | . 3 . Derelict Logs Recovered 1 | . . 1 Drone Launches . | . . . Drone Recoveries . | . . . Exploration | -11 -10 -10 ------------- Run | Yrd Mat Min Turns Passed 1665 | 84 1461 120 Spaces Moved 1024 | 63 883 78 Core 4 | 4 . . Treads . | . . . Legs . | . . . Wheels 1020 | 59 883 78 Hover . | . . . Flight . | . . . Fastest Speed 50 | 50 90 105 Average Speed 108 | 87 109 113 Slowest Speed 150 | 90 150 120 Overloaded Moves . | . . . Propulsion Burnouts . | . . . Robots Hopped . | . . . Cave-ins Triggered . | . . . Exploration Rate (%) 39 | 3 96 20 Regions Visited 2 Branch Regions 1 Pre-discovered Areas 3 | . 2 1 Known Exits Taken . | . . . Unknown Exits Taken 2 | 1 1 . Scrap Searched . | . . . Spaces Dug 1 | . 1 . Terrain Destroyed 78 | . 39 39 Melee 1 | . 1 . Projectile . | . . . AOE 77 | . 38 39 Terrain Rammed . | . . . Walls Destroyed . | . . . Machines Disabled . | . . . Actions | -11 -10 -10 --------- Run | Yrd Mat Min Total 1484 | 79 1309 96 Wait 337 | . 335 2 Move 1022 | 62 882 78 Hop . | . . . Pick Up 24 | 5 19 . Fast Attach 13 | 5 8 . Attach 5 | 2 1 2 Detach 1 | . 1 . Swap 11 | . 9 2 Drop 10 | . 10 . Fire 56 | 5 39 12 Melee 5 | . 5 . Ram . | . . . Kick . | . . . Crush . | . . . Escape Stasis . | . . . Rewire . | . . . Trap . | . . . Miscellaneous . | . . . Route ------- -11/Scrapyard -10/Materials (discovered 5 exits: [*Mat x3] / [*Min x2]) -10/Mines History --------- Turn | Location | Event 23 | -11/Scrapyard | Discovered new exit (range 16) 85 | -11/Scrapyard | Entered Materials 246 | -10/Materials | Discovered new exit (range 15) 316 | -10/Materials | Build established: Mutant 410 | -10/Materials | Discovered new exit (range 10) 424 | -10/Materials | Discovered new exit (range 16) 529 | -10/Materials | Discovered new exit (range 12) 637 | -10/Materials | Discovered new exit (range 14) 640 | -10/Materials | Central database locked down 1035 | -10/Materials | Repaired Arm. Wheel? 1496 | -10/Materials | Repaired Arm. Wheel 1546 | -10/Materials | Entered Mines 1576 | -10/Mines | Assembled infested the area 1581 | -10/Mines | Assisted by a Guerilla fighting off Assembled 1620 | -10/Mines | Core integrity fell below 50% 1665 | -10/Mines | Core integrity fell below 20% 1666 | -10/Mines | Destroyed by D-53 Grenadier with Mini Grenade Launcher Last Messages --------------- 01627_ The unstable cave ceiling collapses. 01641_ Acquired derelict log, extracted data. World map updated: -8/Materials. 01650_ A message is triggered: "If you're looking for Megawrench, sorry but we're not in our cave right now, after essentially being evicted by all these Unaware tunnelers." 01653_ "Blame H1-IDC, who apparently didn't care about the consequences of repeatedly making a mess in Materials. Shooting at robots and generally destroying stuff raised the alert level high enough to trigger assault squads over in the main complex, and they later decided the best way to defend their interests would be to start expanding in this direction." 01660_ Arm. Wheel destroyed. 01662_ Beam Rifle destroyed. 01664_ Arm. Wheel destroyed. 01666_ D-53 Grenadier destroyed. Map ----- +----------------------------------------------------+ | | | | | | | | | | | | | | | ?????????????????????????????????????? | | ?????????????????????????????????????? | | ?????????????????????????????????????? | | ?????????????????????????????????????? | | ?????????????????????????????????????? | | ?????????????????????????????????????? | | ?????????????????????????????????????? | | ???????????????????####??????????????? | | ??????????????????## ##????????????? | | ??????????????##### #???????????? | | ??????????????# #??????????? | | ??????????????# ### ##?????????? | | ??????????????# #?# #?????????? | | ??????????????# #?# ##????????? | | ??????????????# #?? ##???????? | | ??????????????# #??## ##??????? | | ??????????????# #??# #??????? | | ??????????????# #??# ##??????? | | ??????????????# #??# @ #??????? | | ??????????????# #??# #??????? | | ??????????????# #??# d #??????? | | ??????????????# #??## ##??????? | | ??????????????# #???## #???????? | | ??????????????# #????##### #???????? | | ??????????????# #????????# #???????? | | ?????????????## ##???????# #???????? | | ?????????????# ##??????# #???????? | | ?????????????## #??????# #???????? | | ???????????#### #??????# #???????? | | ??????###### ######### #???????? | | ?????## #???????? | | ?????# #???????? | | ?????# #############???????? | | ?????## #??????????????????? | | ??????##### #??????????????????? | | ????????# ##?????????????????? | | ????????# # #?????????????????? | | ????????# #?????????????????? | | ??????# # ##?????????????????? | | ??????# #?????????????????? | | ????? #?????????????????? | | ?? ##?????????????????? | | ??## % ??????????????????? | +----------------------------------------------------+ Best States ------------- Heat Dissipation 35 Energy Generation 10 Energy Capacity 250 Matter Stores 300 Matter Capacity 300 Sight Range 16 Terrain Scan Density 10 Evasion (%) 42 Item Schematics ----------------- None Robot Schematics ------------------ None Fabricated ------------ Nothing Alien Tech Used ----------------- None Achievements -------------- None Challenges ------------ None Game ------ Seed enlighten-germicide-capital Manual? 1 Play Time 00:19:59 Cumulative 100.2 hours Start 2025.03.24 @ 17:38:39 End 2025.03.24 @ 18:01:07 Sessions 1 Manual Loads 0 Difficulty Rogue Special Mode None Game No. 136 Rogue 124 Adventurer 12 Explorer 0 Win Type - Total 1 Types 1/0/0/0/0/0/0/0/0 Lore% 50 Gallery% 55 Achievement% 43 Wizard Run 0 Options --------- Layout 1 ASCII 0 Keyboard 0 Movement Mouse Keybinds 0 Fullscreen 2 Font 24/Terminus Map View 50x35 Zoom Use 0% Tactical HUD 1 Map Filters NONE Filters NONE Steam 1 RUN: da360b56-43f1-4bc5-b7cd-68b5ecd021e7